bitfinex/quotes_SOLUSD_20250522
["timestamp","ask_amount","ask_price","bid_price","bid_amount"]
[1747933228019,19.62873647,178.31,178.21,27.14534507]
[1747933228901,35.26011333,178.31,178.21,21.53408002]
[1747933229322,35.26011333,178.31,178.21,27.14542087]
[1747933229924,35.26011333,178.31,178.21,21.53408002]
[1747933230526,35.26011333,178.31,178.21,27.14537525]
[1747933231025,35.26011333,178.31,178.22,0.14216157]
[1747933231741,19.62873647,178.31,178.22,0.14216157]
[1747933233038,19.62873647,178.31,178.22,5.75318732]
[1747933233406,19.62873647,178.31,178.22,0.14216157]
[1747933234930,15.63137686,178.29,178.22,0.14216157]
[1747933235117,35.26561897,178.26,178.18,18.933972]
[1747933235432,35.26561897,178.26,178.18,18.79181043]
[1747933235728,35.26561897,178.26,178.18,0.14216157]
[1747933235729,15.63137686,178.25,178.18,0.14216157]
[1747933236515,15.63137686,178.24,178.16,18.64964886]
[1747933236719,15.63137686,178.24,178.17,0.14216157]
[1747933237024,15.63137686,178.23,178.17,0.28432314]
[1747933237236,5.61104253,178.22,178.17,0.14216157]
[1747933237434,21.24241939,178.22,178.16,18.64964886]
[1747933237840,21.24241939,178.22,178.17,0.14216157]
[1747933238307,5.61104253,178.22,178.17,0.14216157]
[1747933241230,5.61072771,178.23,178.17,0.14216157]
[1747933244629,1.5319,178.27,178.18,24.967272]
[1747933244809,7.14351042,178.31,178.21,0.14216157]
[1747933245229,7.14351042,178.31,178.24,0.14216157]
[1747933247342,7.14351042,178.31,178.25,0.14216157]
[1747933251657,20.26173047,178.33,178.25,18.933972]
[1747933251658,5.60788994,178.33,178.25,18.933972]
[1747933252565,5.60726701,178.34,178.25,5.89431262]
[1747933252748,35.25681141,178.34,178.25,0.28432314]
[1747933253052,41.63137686,178.33,178.25,0.14216157]
[1747933253221,26.0,178.33,178.25,0.14216157]
[1747933253423,26.0,178.33,178.24,0.14216157]
[1747933253630,26.0,178.33,178.24,0.28432314]
[1747933254553,5.60789591,178.32,178.24,5.8947103]
[1747933254770,5.60789591,178.32,178.26,0.28432314]
[1747933255053,35.25901256,178.32,178.26,0.14216157]
[1747933255265,15.63137686,178.27,178.18,7.86611949]
[1747933255563,27.6578,178.29,178.18,7.86611949]
[1747933255564,15.63137686,178.26,178.18,7.86611949]
[1747933255739,15.63137686,178.26,178.19,0.14216157]
[1747933256241,15.63137686,178.26,178.18,7.86611949]
[1747933256568,5.61009817,178.25,178.18,7.86611949]
[1747933256742,21.24147503,178.25,178.18,7.86611949]
[1747933257070,19.63534361,178.25,178.18,7.86611949]
[1747933257260,35.26672047,178.25,178.18,7.86611949]
[1747933257427,35.26672047,178.25,178.17,18.79181043]
[1747933257634,35.26672047,178.25,178.18,0.14216157]
[1747933257852,35.26672047,178.25,178.14,218.92486198]
[1747933257853,15.63137686,178.23,178.14,209.74]
[1747933258049,15.63137686,178.19,178.11,0.21324235]
[1747933258255,1.6055,178.21,178.12,26.0]
[1747933258256,15.63137686,178.18,178.12,26.0]
[1747933258464,5.61230216,178.18,178.11,0.14216157]
[1747933258665,5.61230216,178.18,178.11,18.79181043]
[1747933258854,19.64305757,178.18,178.13,0.14216157]
[1747933260240,5.61167227,178.2,178.13,18.933972]
[1747933261459,19.64085296,178.2,178.13,18.933972]
[1747933261869,35.27222982,178.2,178.14,0.14216157]
[1747933262042,15.63137686,178.19,178.14,0.14216157]
[1747933262546,19.64085296,178.2,178.14,0.14216157]
[1747933262756,15.63137686,178.19,178.14,0.14216157]
[1747933264368,5.61230216,178.18,178.14,0.14216157]
[1747933266071,35.27443443,178.18,178.11,0.14216157]
[1747933266270,15.63137686,178.17,178.11,0.14216157]
[1747933266576,5.61293219,178.16,178.11,0.14216157]
[1747933267443,19.64526267,178.16,178.11,0.14216157]
[1747933268170,35.27663953,178.16,178.09,4.49707895]
[1747933268470,35.27994812,178.13,178.02,18.79181043]
[1747933268669,15.63137686,178.12,178.02,18.79181043]
[1747933269174,15.63137686,178.12,178.05,26.0]
[1747933269359,15.63137686,178.1,178.02,23.17349754]
[1747933269565,15.63137686,178.1,178.03,26.0]
[1747933269760,15.63137686,178.1,178.02,23.17349754]
[1747933269958,15.63137686,178.1,178.03,0.14216157]
[1747933270569,5.61513841,178.09,178.03,0.14216157]
[1747933270874,5.61513841,178.09,178.02,23.03133597]
[1747933270875,5.61513841,178.09,178.02,18.64964886]
[1747933271051,5.61513841,178.09,178.03,0.14216157]
[1747933272177,17.25447686,178.06,178.0,209.82]
[1747933272562,5.61671534,178.04,178.0,209.82]
[1747933272872,15.63137686,178.02,177.93,18.79181043]
[1747933273078,26.0,178.03,177.93,0.14216157]
[1747933273079,15.63137686,178.0,177.93,0.14216157]
[1747933273550,15.63137686,178.01,177.93,0.14216157]
[1747933273756,26.0,178.03,177.93,18.933972]
[1747933273757,24.5954051,178.02,177.93,18.933972]
[1747933274178,24.5954051,178.02,177.93,18.79181043]
[1747933274561,24.5954051,178.01,177.93,44.79181043]
[1747933274766,24.5954051,178.01,177.93,18.79181043]
[1747933275085,24.5954051,178.01,177.94,26.0]
[1747933275374,24.5954051,178.01,177.95,0.14216157]
[1747933276281,24.5954051,178.0,177.95,0.14216157]
[1747933276496,24.5954051,177.99,177.95,0.14216157]
[1747933276848,5.61860883,177.98,177.9,26.14216157]
[1747933277062,30.21401393,177.98,177.9,26.14216157]
[1747933277341,30.21401393,177.98,177.91,0.14216157]
[1747933277796,24.5954051,177.96,177.9,26.0]
[1747933278077,24.5954051,177.96,177.87,23.18196606]
[1747933278254,1.6182,177.97,177.84,209.96]
[1747933278255,24.5954051,177.94,177.84,209.96]
[1747933278450,24.5954051,177.93,177.85,0.14216157]
[1747933278674,24.5954051,177.94,177.85,26.14216157]
[1747933278867,5.62018771,177.93,177.85,26.14216157]
[1747933279080,5.62018771,177.93,177.86,0.14216157]
[1747933279374,5.62018771,177.93,177.85,26.14216157]
[1747933279960,5.62018771,177.93,177.84,228.60964886]
[1747933279961,44.26606209,177.93,177.84,228.60964886]
[1747933280159,44.26606209,177.93,177.85,0.14216157]
[1747933280364,5.62018771,177.93,177.85,0.14216157]
[1747933280562,5.62018771,177.93,177.85,18.933972]
[1747933280858,24.5954051,177.9,177.79,0.14216157]
[1747933281374,24.5954051,177.9,177.81,26.0]
[1747933281583,24.5954051,177.89,177.81,26.0]
[1747933281785,26.0,177.93,177.82,0.14216157]
[1747933282085,24.5954051,177.9,177.82,0.14216157]
[1747933282385,5.62050359,177.92,177.84,0.14216157]
[1747933286803,44.23539727,177.92,177.84,0.14216157]
[1747933286984,24.5954051,177.91,177.84,0.14216157]
[1747933287491,24.5954051,177.91,177.83,0.14216157]
[1747933287695,24.5954051,177.91,177.82,0.14216157]
[1747933287994,5.62113546,177.9,177.81,26.14216157]
[1747933288173,5.62113546,177.9,177.82,0.14216157]
[1747933288795,5.62113546,177.9,177.83,0.14216157]
[1747933289094,5.62050359,177.92,177.83,0.14216157]
[1747933289780,5.62050359,177.92,177.86,0.14216157]
[1747933289976,5.62018771,177.93,177.86,0.14216157]
[1747933290973,5.61955605,177.95,177.86,18.933972]
[1747933291774,5.61955605,177.95,177.86,24.55636033]
[1747933291974,5.61924027,177.96,177.86,24.55636033]
[1747933292611,19.66734096,177.96,177.86,24.55636033]
[1747933294894,5.61924027,177.96,177.9,0.14216157]
[1747933295072,28.08958738,178.01,177.9,0.14216157]
[1747933295073,14.04384149,178.02,177.9,18.933972]
[1747933295275,5.61766192,178.01,177.94,18.933972]
[1747933295697,5.61671534,178.04,177.94,18.933972]
[1747933295899,7.26303969,178.05,177.98,18.933972]
[1747933296102,5.61576907,178.07,177.98,18.933972]
[1747933296612,1.6466,178.1,177.98,18.933972]
[1747933296613,5.61539511,178.09,178.02,18.933972]
[1747933297396,5.61539511,178.09,178.02,26.14216157]
[1747933297577,19.65324114,178.09,178.02,26.14216157]
[1747933299886,5.61539511,178.09,178.04,0.14216157]
[1747933305118,1.6466,178.1,178.05,0.14216157]
[1747933305287,5.61468523,178.11,178.06,0.14216157]
[1747933306219,5.61356236,178.14,178.06,0.14216157]
[1747933308125,5.61356236,178.14,178.08,0.14216157]
[1747933308816,5.61356236,178.14,178.11,0.14216157]
[1747933310797,19.64746827,178.14,178.09,0.14216157]
[1747933312495,44.24287337,178.14,178.09,0.14216157]
[1747933313091,44.24287337,178.14,178.06,0.14216157]
[1747933313712,72.3106852,178.14,178.06,0.14216157]
[1747933313886,24.5954051,178.11,178.03,82.3]
[1747933314093,24.5954051,178.1,178.03,82.3]
[1747933314305,19.65519176,178.07,177.97,88.8001]
[1747933314489,24.5954051,178.05,177.96,210.1]
[1747933314986,24.5954051,178.02,177.96,210.1]
[1747933315186,24.5954051,178.01,177.96,210.1]
[1747933315386,24.5954051,178.01,177.97,0.14216157]
[1747933315606,24.5954051,178.01,177.96,210.1]
[1747933315783,24.5954051,178.02,177.97,0.14216157]
[1747933315982,6.5735,178.03,177.97,0.14216157]
[1747933316292,5.61671534,178.04,177.97,0.14216157]
[1747933316607,30.21212044,178.04,177.97,0.14216157]
[1747933316997,44.2539088,178.04,177.97,0.14216157]
[1747933317212,5.61671534,178.04,178.0,0.14216157]
[1747933317508,7.18409862,178.06,178.0,26.14216157]
[1747933318189,1.5677,178.06,178.0,26.14216157]
[1747933318408,5.61513841,178.09,178.02,0.14216157]
[1747933318892,5.61513841,178.09,178.05,0.14216157]
[1747933319096,5.61513841,178.09,178.05,26.14216157]
[1747933319299,5.61489074,178.1,178.05,26.14216157]
[1747933320214,5.61489074,178.1,178.05,0.14216157]
[1747933324315,5.61489074,178.1,178.05,26.14216157]
[1747933324699,5.61489074,178.1,178.05,0.14216157]
[1747933326623,19.65194857,178.1,177.98,106.59053909]
[1747933326816,24.5954051,178.09,178.0,0.14216157]
[1747933327005,44.24735367,178.1,178.03,0.14216157]
[1747933327209,19.65194857,178.1,178.03,26.14216157]
[1747933328196,44.24735367,178.1,178.03,26.14216157]
[1747933328734,5.61458868,178.11,178.07,26.0]
[1747933328895,5.61458868,178.11,178.08,26.14216157]
[1747933329295,44.24537492,178.12,178.08,26.14216157]
[1747933329521,44.24537492,178.12,178.08,0.14216157]
[1747933329904,44.24537492,178.12,178.06,0.14216157]
[1747933330722,24.5954051,178.11,178.06,0.14216157]
[1747933331026,24.5954051,178.09,178.05,0.14216157]
[1747933331516,24.5954051,178.09,177.99,18.64964886]
[1747933331517,19.65408804,178.08,178.02,26.0]
[1747933331715,5.61545372,178.08,178.02,26.0]
[1747933331911,5.61450788,178.11,178.03,18.933972]
[1747933332426,24.5954051,178.1,178.03,0.14216157]
[1747933332721,44.2461827,178.11,178.03,0.14216157]
[1747933332930,19.6507776,178.11,178.03,0.14216157]
[1747933333305,44.2461827,178.11,178.03,0.14216157]
[1747933333509,38.63167482,178.11,178.03,0.14216157]
[1747933336019,44.2461827,178.11,178.03,0.14216157]
[1747933336221,5.61450788,178.11,178.03,18.933972]
[1747933337829,5.61450788,178.11,178.03,101.233972]
[1747933339030,19.6500333,178.12,178.03,101.233972]
[1747933339357,19.6500333,178.12,178.03,82.44216157]
[1747933339619,24.5954051,178.11,178.03,82.44216157]
[1747933339822,44.2454384,178.12,178.03,82.44216157]
[1747933340011,5.61419267,178.12,178.06,18.79181043]
[1747933340209,5.61419267,178.12,178.07,0.14216157]
[1747933341429,5.61356236,178.14,178.07,0.14216157]
[1747933341633,5.61356236,178.14,178.1,26.14216157]
[1747933343441,35.22247696,178.18,178.1,26.14216157]
[1747933343736,24.55816655,178.16,178.09,0.14216157]
[1747933344234,24.55816655,178.14,178.04,6.44976157]
[1747933344606,24.55816655,178.13,178.04,26.0]
[1747933344854,24.55816655,178.13,178.02,18.79181043]
[1747933345030,24.55816655,178.13,178.06,0.14216157]
[1747933345405,5.61419267,178.12,178.06,0.14216157]
[1747933346646,5.61257398,178.18,178.1,0.14216157]
[1747933346843,5.61257398,178.18,178.12,0.14216157]
[1747933347611,5.61135738,178.21,178.16,0.14216157]
[1747933348041,19.63975084,178.21,178.16,0.14216157]
[1747933349846,14.02839346,178.21,178.16,0.14216157]
[1747933351634,14.02839346,178.21,178.16,18.933972]
[1747933351828,14.02839346,178.21,178.16,101.233972]
[1747933352227,14.02839346,178.21,178.16,82.44216157]
[1747933353030,14.02839346,178.21,178.16,0.14216157]
[1747933355059,5.61104253,178.22,178.18,0.14216157]
[1747933355623,5.61104253,178.22,178.18,18.933972]
[1747933357147,19.63424211,178.26,178.18,18.933972]
[1747933357828,19.63424211,178.26,178.18,0.14216157]
[1747933358330,24.55816655,178.23,178.16,26.0]
[1747933358525,24.55816655,178.22,178.11,6.138]
[1747933358881,24.55816655,178.14,178.06,7.86611949]
[1747933359153,44.20784091,178.12,178.06,7.86611949]
[1747933359340,44.20784091,178.12,178.06,33.86611949]
[1747933359656,19.64967436,178.12,178.07,0.14216157]
[1747933359894,44.20784091,178.12,178.06,33.86611949]
[1747933360163,19.64967436,178.12,178.07,0.14216157]
[1747933360327,19.64967436,178.12,178.06,26.0]
[1747933360532,19.64967436,178.12,178.05,0.14216157]
[1747933360916,19.64967436,178.12,178.08,0.14216157]
[1747933362747,24.55816655,178.11,178.05,0.14216157]
[1747933363048,24.55816655,178.11,178.0,19.00505278]
[1747933363358,24.55816655,178.11,178.05,0.14216157]
[1747933363656,5.61482313,178.1,178.05,0.14216157]
[1747933365655,19.64967436,178.12,178.05,0.14216157]
[1747933365962,5.61419267,178.12,178.05,18.933972]
[1747933366173,5.61396289,178.13,178.05,24.55033078]
[1747933366661,5.61396289,178.13,178.09,0.14216157]
[1747933367163,5.61293219,178.16,178.09,18.933972]
[1747933367458,19.64526267,178.16,178.09,0.14216157]
[1747933368041,44.20342922,178.16,178.09,0.14216157]
[1747933368649,19.64526267,178.16,178.09,0.14216157]
[1747933369542,19.64526267,178.16,178.08,0.14216157]
[1747933370065,19.64526267,178.16,178.08,18.933972]
[1747933370558,5.61135738,178.21,178.13,0.14216157]
[1747933370766,5.61135738,178.21,178.14,18.79181043]
[1747933370966,5.61135738,178.21,178.15,0.14216157]
[1747933371144,14.02569966,178.25,178.18,0.14216157]
[1747933371952,5.60978346,178.26,178.18,18.933972]
[1747933372157,5.60978346,178.26,178.2,0.14216157]
[1747933372770,5.60978346,178.26,178.23,0.14216157]
[1747933374546,24.55816655,178.25,178.17,33.64]
[1747933374886,24.55816655,178.23,178.14,33.64]
[1747933375171,24.55816655,178.23,178.15,26.14216157]
[1747933375371,24.55816655,178.23,178.15,26.0]
[1747933375668,24.55816655,178.23,178.16,0.14216157]
[1747933375976,19.63864885,178.22,178.16,0.14216157]
[1747933376149,44.1968154,178.22,178.16,0.14216157]
[1747933377650,19.63864885,178.22,178.16,0.14216157]
[1747933378170,44.1968154,178.22,178.16,0.14216157]
[1747933380076,5.61041292,178.24,178.19,26.0]
[1747933380279,19.63644523,178.24,178.19,26.0]
[1747933380588,44.19461178,178.24,178.19,26.0]
[1747933381077,24.55816655,178.23,178.18,0.14216157]
[1747933381260,24.55816655,178.23,178.17,26.0]
[1747933382069,44.19461178,178.24,178.18,0.14216157]
[1747933382949,44.19461178,178.24,178.14,33.64]
[1747933382950,24.55816655,178.2,178.14,33.64]
[1747933383150,24.55816655,178.17,178.1,33.64]
[1747933383350,1.5128,178.18,178.1,33.64]
[1747933383351,24.55816655,178.16,178.1,33.64]
[1747933383551,24.55816655,178.17,178.13,26.0]
[1747933383752,1.5128,178.18,178.11,0.14216157]
[1747933384052,5.61167227,178.2,178.15,0.14216157]
[1747933384273,19.64085296,178.2,178.15,0.14216157]
[1747933384474,44.19901951,178.2,178.15,0.14216157]
[1747933384678,44.19901951,178.2,178.14,26.0]
[1747933384978,24.55816655,178.19,178.15,0.14216157]
[1747933385979,19.64085296,178.2,178.15,0.14216157]
[1747933386274,5.61167227,178.2,178.15,26.14216157]
[1747933386655,30.16983882,178.2,178.15,0.14216157]
[1747933386998,44.19901951,178.2,178.15,0.14216157]
[1747933387357,5.61167227,178.2,178.15,0.14216157]
[1747933387978,14.02871076,178.21,178.15,0.14216157]
[1747933388174,19.64006814,178.21,178.15,0.14216157]
[1747933388881,5.61135738,178.21,178.15,0.14216157]
[1747933389180,5.61135738,178.21,178.15,26.14216157]
[1747933389930,5.61041292,178.24,178.16,0.14216157]
[1747933390183,5.61009817,178.25,178.2,26.0]
[1747933390388,44.19351016,178.25,178.2,26.0]
[1747933391285,24.55816655,178.24,178.2,26.0]
[1747933391480,5.61009817,178.25,178.21,0.14216157]
[1747933392361,5.60978346,178.26,178.21,0.14216157]
[1747933392559,5.60978346,178.26,178.23,0.14216157]
[1747933394087,44.19240866,178.26,178.22,26.0]
[1747933394403,14.02245403,178.29,178.22,0.14216157]
[1747933394778,5.60852495,178.3,178.22,0.14216157]
[1747933394986,5.60852495,178.3,178.26,26.0]
[1747933395208,5.60852495,178.3,178.27,0.14216157]
[1747933396195,5.60818529,178.32,178.27,0.14216157]
[1747933396400,5.60726701,178.34,178.27,0.14216157]
[1747933397096,5.60726701,178.34,178.28,26.14216157]
[1747933398696,44.1836011,178.34,178.28,0.14216157]
[1747933399601,19.62543455,178.34,178.28,0.14216157]
[1747933399781,19.62543455,178.34,178.28,26.14216157]
[1747933400915,24.55816655,178.33,178.27,0.14216157]
[1747933401075,24.55816655,178.32,178.25,0.14216157]
[1747933401892,24.55816655,178.31,178.25,0.14216157]
[1747933402379,5.60852495,178.3,178.25,0.14216157]
[1747933402900,19.62983734,178.3,178.25,0.14216157]
[1747933404790,24.55816655,178.28,178.24,26.0]
[1747933405205,24.55816655,178.29,178.24,26.0]
[1747933405980,44.78837684,178.3,178.24,26.0]
[1747933408914,24.55816655,178.29,178.24,26.0]
[1747933409811,15.56298272,178.29,178.24,26.0]
[1747933410311,15.56298272,178.26,178.22,26.0]
[1747933410515,15.56298272,178.26,178.2,0.14216157]
[1747933410816,15.56298272,178.26,178.2,26.0]
[1747933411014,15.56298272,178.26,178.21,0.14216157]
[1747933411683,24.53168325,178.26,178.21,0.14216157]
[1747933411887,26.16568325,178.27,178.21,0.14216157]
[1747933412111,5.60915413,178.28,178.21,26.14216157]
[1747933412292,24.53168325,178.28,178.24,26.0]
[1747933412799,24.53168325,178.27,178.22,26.14216157]
[1747933413692,24.53168325,178.26,178.2,26.14216157]
[1747933414185,0.60037295,178.31,178.2,26.14216157]
[1747933414186,24.53168325,178.24,178.2,26.0]
[1747933414497,21.16334361,178.25,178.12,211.0214]
[1747933414498,24.53168325,178.21,178.14,33.62]
[1747933414810,24.53168325,178.21,178.17,26.0]
[1747933415915,5.61167227,178.2,178.17,26.0]
[1747933416110,19.64085296,178.2,178.15,0.14216157]
[1747933416492,19.64085296,178.2,178.17,26.0]
[1747933416805,5.61167227,178.2,178.17,26.0]
[1747933417514,5.61072771,178.23,178.18,0.14216157]
[1747933418016,5.61041292,178.24,178.18,0.14216157]
[1747933418713,5.61041292,178.24,178.2,26.0]
[1747933418910,5.60946878,178.27,178.21,0.14216157]
[1747933419994,5.60915413,178.28,178.21,0.14216157]
[1747933420608,5.60915413,178.28,178.21,4.5995659]
[1747933420788,5.60915413,178.28,178.25,0.14216157]
[1747933421422,5.60915413,178.28,178.22,0.14216157]
[1747933421622,5.60893919,178.29,178.22,0.14216157]
[1747933422118,14.01944454,178.33,178.24,0.14216157]
[1747933422299,14.01944454,178.33,178.24,26.14216157]
[1747933422801,19.62702599,178.33,178.26,26.0]
[1747933423123,19.62702599,178.33,178.27,0.14216157]
[1747933423322,5.60758145,178.33,178.27,0.14216157]
[1747933425316,19.62653507,178.33,178.27,0.14216157]
[1747933426616,19.62653507,178.33,178.26,0.14216157]
[1747933426617,5.60758145,178.33,178.26,0.14216157]
[1747933426823,5.60758145,178.33,178.29,0.14216157]
[1747933427521,5.60695262,178.35,178.29,0.14216157]
[1747933428927,14.01662122,178.36,178.28,0.14216157]
[1747933429126,14.01662122,178.36,178.28,33.76216157]
[1747933430835,19.62325947,178.36,178.28,33.76216157]
[1747933432623,5.60663825,178.36,178.28,39.37126521]
[1747933432808,5.60632393,178.37,178.28,33.76216157]
[1747933433127,5.60632393,178.37,178.28,116.06216157]
[1747933433501,44.15405501,178.37,178.28,116.06216157]
[1747933433833,35.17074526,178.37,178.28,116.06216157]
[1747933434136,15.5483735,178.36,178.28,116.06216157]
[1747933434942,19.62433417,178.35,178.28,116.06216157]
[1747933436726,19.62433417,178.35,178.28,33.76216157]
[1747933438515,5.60659382,178.37,178.33,0.14216157]
[1747933439037,19.61829459,178.41,178.33,0.14216157]
[1747933441130,63.19200299,178.41,178.32,26.0]
[1747933441733,47.64362949,178.41,178.32,26.0]
[1747933441929,63.19200299,178.41,178.32,26.0]
[1747933443536,47.64362949,178.41,178.33,0.14216157]
[1747933443921,19.61829459,178.41,178.33,0.14216157]
[1747933444554,19.61829459,178.41,178.33,0.14216157]
[1747933444721,35.16666809,178.41,178.33,0.14216157]
[1747933445808,19.61829459,178.41,178.35,0.14216157]
[1747933446038,19.61829459,178.41,178.33,0.14216157]
[1747933447338,19.61829459,178.41,178.33,18.79181043]
[1747933447642,5.60506698,178.41,178.33,24.39932517]
[1747933449922,5.60506698,178.41,178.33,106.69932517]
[1747933450923,14.01062634,178.44,178.37,0.14216157]
[1747933451130,5.60381059,178.45,178.37,0.14216157]
[1747933451315,5.60381059,178.45,178.37,52.39181043]
[1747933451929,5.60381059,178.45,178.4,26.0]
[1747933452251,19.61223803,178.46,178.4,26.0]
[1747933459627,19.61223803,178.46,178.41,0.14216157]
[1747933459826,19.61223803,178.46,178.41,26.14216157]
[1747933466859,5.60349658,178.46,178.41,26.14216157]
[1747933467267,5.60224089,178.5,178.44,0.14216157]
[1747933470061,1.5325,178.49,178.44,26.0]
[1747933470266,15.5483735,178.45,178.33,6.0184]
[1747933470564,1.5325,178.41,178.32,41.46611949]
[1747933470764,1.5325,178.41,178.33,18.64964886]
[1747933470968,19.39218338,178.4,178.32,7.86611949]
[1747933471153,15.5483735,178.33,178.32,7.86611949]
[1747933471349,21.15595495,178.33,178.32,7.86611949]
[1747933471548,43.47038152,178.33,178.17,7.86611949]
[1747933471749,15.5483735,178.32,178.17,7.86611949]
[1747933471953,27.92200802,178.33,178.17,10.78478214]
[1747933471954,15.5483735,178.29,178.17,10.78478214]
[1747933472343,15.5483735,178.29,178.21,26.14216157]
[1747933472648,15.5483735,178.29,178.21,0.14216157]
[1747933473065,15.5483735,178.3,178.21,26.14216157]
[1747933473442,5.60883953,178.29,178.21,26.0]
[1747933473657,35.17931185,178.29,178.22,26.0]
[1747933473867,44.15070379,178.29,178.23,0.14216157]
[1747933474047,19.63093835,178.29,178.22,26.0]
[1747933474372,5.60883953,178.29,178.23,0.14216157]
[1747933476467,5.60883953,178.29,178.22,0.14216157]
[1747933477773,5.60789591,178.32,178.26,26.0]
[1747933477949,5.60789591,178.32,178.27,0.14216157]
[1747933479678,19.62582741,178.34,178.27,26.14216157]
[1747933480282,44.14559285,178.34,178.27,0.14216157]
[1747933480460,44.14559285,178.34,178.27,26.14216157]
[1747933480972,19.62582741,178.34,178.27,26.14216157]
[1747933481865,5.60726701,178.34,178.27,26.14216157]
[1747933482067,5.60726701,178.34,178.31,26.0]
[1747933484274,5.60726701,178.34,178.28,33.62]
[1747933485479,19.62543455,178.34,178.29,0.14216157]
[1747933485681,44.14519999,178.34,178.28,33.62]
[1747933485869,24.51976544,178.33,178.28,33.62]
[1747933486065,44.14519999,178.34,178.28,33.62]
[1747933487082,24.51976544,178.32,178.28,33.62]
[1747933488369,5.60821042,178.31,178.28,33.62]
[1747933489774,19.62830992,178.32,178.28,33.62]
[1747933491488,5.60789591,178.32,178.29,0.14216157]
[1747933491990,38.53763849,178.35,178.29,0.14216157]
[1747933493291,38.53763849,178.35,178.3,37.86]
[1747933494090,44.14459111,178.35,178.3,37.86]
[1747933495285,19.62482567,178.35,178.3,37.86]
[1747933495495,5.60695262,178.35,178.31,0.14216157]
[1747933498792,19.62433417,178.35,178.31,0.14216157]
[1747933499093,35.17059919,178.35,178.3,37.86]
[1747933500390,19.62433417,178.35,178.3,37.86]
[1747933500782,5.60695262,178.35,178.31,0.14216157]
[1747933502198,19.62433417,178.35,178.3,37.86]
[1747933506009,5.60695262,178.35,178.31,0.14216157]
[1747933506177,5.60600964,178.38,178.33,0.14216157]
[1747933508101,19.62103374,178.38,178.33,0.14216157]
[1747933508596,15.54626502,178.36,178.32,33.62]
[1747933509103,35.16729876,178.38,178.32,33.62]
[1747933509687,19.62103374,178.38,178.33,0.14216157]
[1747933509894,5.60600964,178.38,178.33,0.14216157]
[1747933510983,19.62103374,178.38,178.33,0.14216157]
[1747933513505,19.62103374,178.38,178.34,37.84]
[1747933515196,5.60600964,178.38,178.34,37.84]
[1747933520292,15.54626502,178.37,178.34,37.84]
[1747933521591,35.16729876,178.38,178.34,37.84]
[1747933522718,19.62103374,178.38,178.34,37.84]
[1747933522892,5.60600964,178.38,178.34,37.84]
[1747933523096,5.60600964,178.38,178.35,0.14216157]
[1747933523433,5.60538116,178.4,178.35,0.14216157]
[1747933525791,5.60538116,178.4,178.35,33.74216157]
[1747933526007,5.60475283,178.42,178.35,33.74216157]
[1747933527199,5.60443871,178.43,178.35,33.74216157]
[1747933527615,15.54626502,178.42,178.35,33.74216157]
[1747933528116,15.54626502,178.42,178.35,59.74216157]
[1747933529014,15.54626502,178.42,178.35,0.14216157]
[1747933529216,15.54626502,178.42,178.35,33.74216157]
[1747933530129,5.60443871,178.43,178.39,0.14216157]
[1747933530309,5.60443871,178.43,178.4,37.84]
[1747933531102,5.60397807,178.45,178.41,0.14216157]
[1747933531505,5.60397807,178.45,178.41,26.14216157]
[1747933532005,19.61113911,178.47,178.41,26.14216157]
[1747933534114,19.61113911,178.47,178.43,26.0]
[1747933534737,19.61113911,178.47,178.41,0.14216157]
[1747933534942,19.61113911,178.47,178.41,26.14216157]
[1747933539526,19.61113911,178.47,178.43,26.0]
[1747933541331,14.0061482,178.5,178.44,0.14216157]
[1747933541652,5.60224089,178.5,178.45,26.0]
[1747933542160,21.14850591,178.5,178.45,26.0]
[1747933542437,35.15410815,178.5,178.45,26.0]
[1747933543427,5.60224089,178.5,178.45,26.0]
[1747933543643,5.60224089,178.5,178.46,37.94216157]
[1747933544837,5.60192706,178.51,178.46,37.94216157]
[1747933546468,15.54626502,178.49,178.46,37.8]
[1747933546938,5.60286866,178.48,178.46,37.8]
[1747933547827,15.54626502,178.5,178.46,37.8]
[1747933549339,5.60255476,178.49,178.46,37.8]
[1747933549737,21.14881978,178.49,178.46,37.8]
[1747933550017,5.60255476,178.49,178.46,37.8]
[1747933550717,21.14881978,178.49,178.46,37.8]
[1747933550929,15.54626502,178.47,178.46,37.8]
[1747933551137,5.6031826,178.47,178.46,37.8]
[1747933551819,5.6031826,178.47,178.44,37.8]
[1747933553744,19.61017316,178.48,178.44,37.8]
[1747933555633,35.15643818,178.48,178.44,37.8]
[1747933555833,19.61017316,178.48,178.44,37.8]
[1747933556753,35.15643818,178.48,178.44,37.8]
[1747933556923,19.61017316,178.48,178.44,37.8]
[1747933557125,15.54626502,178.47,178.44,37.8]
[1747933557344,19.61017316,178.48,178.44,37.8]
[1747933557533,5.60286866,178.48,178.44,37.8]
[1747933557724,19.60894167,178.49,178.44,37.8]